fUSD/lending_fUSD_20240801
["ID","MTS","AMOUNT","RATE_DAILY","PERIOD"]
[333813367,1722526245374,-3654.35053478,0.00013,2]
[333813369,1722526245389,-44761.16853452,0.00013,2]
[333813372,1722526245404,-32978.56201915,0.00013,2]
[333813467,1722526246812,-639.864,0.00010997,2]
[333813468,1722526246824,-252.4827,0.00010997,2]
[333813469,1722526246836,-886.93736865,0.00010997,2]
[333813470,1722526246845,-1431.48542273,0.00011147,2]
[333813471,1722526246900,-358.54738649,0.00011147,2]
[333813472,1722526246912,-1615.90085678,0.00011147,2]
[333813473,1722526246922,-1500.0,0.00012826,2]
[333813474,1722526246931,-389776.47805291,0.00013,2]
[333813475,1722526246942,-1582.43069736,0.00013,2]
[333813476,1722526246993,-1265.6,0.00013,2]
[333813477,1722526247005,-1470.75,0.00013,2]
[333813478,1722526247016,-8571.89705668,0.00013,2]
[333813479,1722526247028,-40508.64796029,0.00013,2]
[333813480,1722526247039,-555.86699888,0.00013,2]
[333813481,1722526247051,-12771.99245784,0.00013,2]
[333813482,1722526247062,-922.26269289,0.00013,2]
[333813483,1722526247073,-660.0,0.00013,2]
[333813484,1722526247084,-1278.44042038,0.00013,2]
[333813485,1722526247096,-352.58139064,0.00013,2]
[333813486,1722526247115,-870.66039763,0.00013,2]
[333813487,1722526247127,-2016.87921578,0.00013,2]
[333813488,1722526247138,-422.24066894,0.00013,2]
[333813489,1722526247149,-807.22577898,0.00013,2]
[333813490,1722526247161,-1272.44763344,0.00013,2]
[333813491,1722526247185,-776.31930374,0.00010835,2]
[333813492,1722526247197,-391.21876826,0.00010835,2]
[333813493,1722526247208,-1298.35841043,0.00013,2]
[333813494,1722526247221,-305.89005676,0.00013,2]
[333813495,1722526247236,-1233.16208519,0.00013,2]
[333813496,1722526247248,-380396.90297018,0.00013,2]
[333813497,1722526247287,-867.34614296,0.00013,2]
[333813498,1722526247299,-535.8969043,0.00013,2]
[333813499,1722526247310,-432.27653367,0.00013,2]
[333813500,1722526247322,-1582.11666,0.00013,2]
[333813501,1722526247334,-780.40000001,0.00013,2]
[333813502,1722526247346,-1903.2,0.00013,2]
[333813503,1722526247357,-480.16982061,0.00013,2]
[333813504,1722526247370,-1588.77127941,0.00013,2]
[333813505,1722526247384,-731.34227642,0.00013,2]
[333813506,1722526247395,-11210.83068906,0.00013,2]
[333814581,1722526305344,329.95539117,0.00027,120]
[333814582,1722526341841,329.95539117,0.00027,120]
[333814585,1722526399207,500.0,0.00024954,120]
[333814586,1722526399611,500.0,0.00026488,120]
[333814766,1722527113895,166.0,0.000178,120]
[333814768,1722527114380,166.0,0.0001779,120]
[333814770,1722527114860,166.0,0.0001778,120]
[333814772,1722527115367,166.0,0.000178,120]
[333814774,1722527115836,166.0,0.0001779,120]
[333814775,1722527116297,166.0,0.0001778,120]
[333814778,1722527116766,166.0,0.000178,120]
[333814779,1722527117247,166.0,0.0001779,120]
[333814780,1722527117742,166.0,0.000178,120]
[333814782,1722527118554,168.67,0.0001779,120]
[333814914,1722527233202,150.5,0.000178,120]
[333814915,1722527233668,150.5,0.0001779,120]
[333814916,1722527234062,150.5,0.0001778,120]
[333814917,1722527234534,150.5,0.000178,120]
[333814918,1722527235013,290.0,0.0001779,120]
[333815100,1722527432901,-283.0,8.218e-05,2]
[333815101,1722527432912,-500.0,8.219e-05,2]
[333815102,1722527432922,-169.55,8.219e-05,2]
[333815103,1722527432931,-963.67,8.219e-05,2]
[333815104,1722527432941,-10000.0,9.585e-05,2]
[333815105,1722527432951,-300.0,9.721e-05,2]
[333815106,1722527432960,-3604.49542363,9.722e-05,2]
[333815108,1722527432975,-544.0998858,9.722e-05,2]
[333815110,1722527433009,-8578.27649057,9.722e-05,2]
[333815111,1722527433018,-200.0,9.757e-05,2]
[333815112,1722527433028,-250.0,9.774e-05,2]
[333815113,1722527433039,-204.15,9.791e-05,2]
[333815114,1722527433049,-195.85,9.81e-05,2]
[333815115,1722527433059,-300.0,9.821e-05,2]
[333815116,1722527433068,-23900.0,9.822e-05,2]
[333815117,1722527433079,-1245.75,9.933e-05,2]
[333815118,1722527433089,-499.99,9.939e-05,2]
[333815119,1722527433098,-964.4,9.939e-05,2]
[333815121,1722527433108,-633.99,9.939e-05,2]
[333815123,1722527433118,-1198.72,9.939e-05,2]
[333815125,1722527433128,-150.0,0.0001001,2]
[333815127,1722527433138,-1000.0,0.00010011,2]
[333815129,1722527433148,-171.36,0.00010321,2]
[333815131,1722527433159,-963.67,0.00010455,2]
[333815133,1722527433169,-4510.2300586,0.000105,2]
[333815135,1722527433179,-420.0,0.00010693,2]
[333815137,1722527433188,-195.18,0.00010735,2]
[333815139,1722527433198,-7538.6776,0.000108,2]
[333815141,1722527433208,-1976.25450174,0.00010899,2]
[333815143,1722527433218,-181.13089824,0.00010899,2]
[333815145,1722527433228,-5411.27561053,0.00010899,2]
[333815147,1722527433240,-205420.4826,0.000109,2]
[333815149,1722527433250,-250.0,0.00010959,2]
[333815151,1722527433260,-271.68,0.00010959,2]
[333815153,1722527433270,-154.44,0.00010983,2]
[333815155,1722527433280,-154.44,0.00010989,2]
[333815157,1722527433290,-154.44,0.00010994,2]
[333815159,1722527433299,-154.44,0.00011,2]
[333815160,1722527433308,-154.44,0.00011005,2]
[333815161,1722527433318,-154.44,0.00011011,2]
[333815162,1722527433328,-154.44,0.00011016,2]
[333815164,1722527433338,-154.44,0.00011022,2]
[333815165,1722527433348,-154.44,0.00011027,2]
[333815166,1722527433358,-154.44,0.00011033,2]
[333815167,1722527433368,-154.44,0.00011038,2]
[333815168,1722527433378,-5411.2756105,0.00011086,2]
[333815169,1722527433388,-155.28318094,0.00011105,2]
[333815170,1722527433398,-1296.95622263,0.00011105,2]
[333815171,1722527433408,-218.69189255,0.00011105,2]
[333815172,1722527433418,-2143.78276528,0.00011105,2]
[333815173,1722527433428,-2447.73701932,0.00011105,2]
[333815174,1722527433437,-10524.20000003,0.00011105,2]
[333815175,1722527433447,-240.0,0.00011117,2]
[333815176,1722527433456,-7000.0,0.0001116,2]
[333815177,1722527433465,-35692.14335282,0.00011186,2]
[333815178,1722527433475,-5000.0,0.00011205,2]
[333815179,1722527433486,-1000.0,0.00011262,2]
[333815180,1722527433496,-5411.2756105,0.00011313,2]
[333815181,1722527433506,-181.13089824,0.00011539,2]
[333815182,1722527433515,-5411.2756105,0.00011539,2]
[333815183,1722527433525,-587.0,0.00011762,2]
[333815184,1722527433534,-5411.2756105,0.00011766,2]
[333815185,1722527433544,-1137.94693277,0.0001185,2]
[333815186,1722527433553,-5398.55869267,0.00011896,2]
[333815187,1722527433562,-5398.55869267,0.00011896,2]
[333815188,1722527433572,-5321.7841887,0.00011896,2]
[333815189,1722527433581,-3117.7279925,0.00011896,2]
[333815190,1722527433590,-5321.7841887,0.00011896,2]
[333815191,1722527433600,-3117.7279925,0.00011896,2]
[333815192,1722527433610,-155.577,0.00011989,2]
[333815193,1722527433620,-150.0,0.00011989,2]
[333815194,1722527433629,-150.0,0.00011989,2]
[333815195,1722527433639,-150.0,0.00011989,2]
[333815196,1722527433649,-370.765,0.00011989,2]
[333815197,1722527433659,-264.665,0.00011989,2]
[333815198,1722527433669,-5411.2756105,0.00011993,2]
[333815199,1722527433678,-550.0,0.00012,2]
[333815200,1722527433688,-162.1,0.00012033,2]
[333815201,1722527433697,-200.0,0.000122,4]
[333815202,1722527433706,-181.13089824,0.0001222,2]
[333815203,1722527433716,-5411.2756105,0.0001222,2]
[333815204,1722527433725,-500.0,0.000123,4]
[333815205,1722527433736,-3400.91875942,0.0001236,2]
[333815206,1722527433754,-3400.91875942,0.0001236,2]
[333815207,1722527433765,-155.0,0.0001236,2]
[333815208,1722527433775,-3079.05538157,0.0001236,2]
[333815209,1722527433788,-800.0,0.000124,4]
[333815210,1722527433799,-5411.2756105,0.00012446,2]
[333815211,1722527433808,-1100.0,0.000125,4]
[333815212,1722527433818,-240.0,0.00012507,2]
[333815213,1722527433829,-1000.0,0.00012514,2]
[333815214,1722527433839,-270.28818504,0.0001254,2]
[333815215,1722527433850,-270.28818504,0.0001254,2]
[333815216,1722527433861,-1274.29800748,0.00012581,2]
[333815217,1722527433871,-1621.96390599,0.00012581,2]
[333815219,1722527433881,-1300.0,0.000126,4]
[333815220,1722527433891,-298.34472477,0.00012613,2]
[333815221,1722527433901,-206.56189729,0.00012613,2]
[333815222,1722527433911,-1183.81771126,0.00012665,2]
[333815223,1722527433921,-1073.58046777,0.00012665,2]
[333815224,1722527433931,-1183.81771126,0.00012665,2]
[333815225,1722527433942,-722.68329662,0.00012666,2]
[333815226,1722527433951,-531.73631271,0.00012666,2]
[333815227,1722527433962,-1500.0,0.00012666,2]
[333815228,1722527433972,-1725.0,0.00012666,2]
[333815229,1722527433983,-5411.2756105,0.00012673,2]
[333815230,1722527433995,-347.32373286,0.00012681,2]
[333815231,1722527434005,-203.99683703,0.00012681,2]
[333815232,1722527434015,-203.99683703,0.00012681,2]
[333815233,1722527434024,-203.99683703,0.00012681,2]
[333815234,1722527434035,-476.4573429,0.00012681,2]
[333815235,1722527434044,-205.72998009,0.00012681,2]
[333815236,1722527434054,-652.98954069,0.00012681,2]
[333815237,1722527434064,-155.0,0.0001269,2]
[333815238,1722527434075,-264.22630711,0.0001269,2]
[333815239,1722527434085,-555.0,0.0001269,2]
[333815240,1722527434095,-155.0,0.0001269,2]
[333815241,1722527434105,-155.0,0.0001269,2]
[333815242,1722527434115,-963.67,0.00012691,2]
[333815243,1722527434125,-155.0,0.00012696,2]
[333815244,1722527434134,-155.0,0.00012696,2]
[333815245,1722527434144,-155.0,0.00012696,2]
[333815246,1722527434153,-168.00187717,0.00012696,2]
[333815247,1722527434163,-155.0,0.00012696,2]
[333815248,1722527434173,-155.0,0.00012696,2]
[333815249,1722527434183,-164.21268611,0.00012696,2]
[333815250,1722527434192,-155.0,0.00012696,2]
[333815251,1722527434202,-439.64535601,0.00012696,2]
[333815252,1722527434212,-164.21268611,0.00012696,2]
[333815253,1722527434222,-200.0,0.000127,4]
[333815254,1722527434231,-419.90121071,0.00012743,2]
[333815255,1722527434243,-196.9278947,0.00012749,2]
[333815256,1722527434252,-159.44788772,0.00012749,2]
[333815257,1722527434262,-164.23596765,0.00012749,2]
[333815258,1722527434271,-365.36537875,0.00012749,2]
[333815259,1722527434281,-202.68830391,0.00012749,2]
[333815260,1722527434291,-155.0,0.00012749,2]
[333815261,1722527434300,-155.0,0.00012749,2]
[333815262,1722527434310,-200.0,0.000128,4]
[333815263,1722527434319,-1000.0,0.000128,2]
[333815264,1722527434330,-387.79038477,0.00012801,2]
[333815265,1722527434339,-155.0,0.00012818,2]
[333815266,1722527434348,-243.00643023,0.00012818,2]
[333815267,1722527434358,-155.0,0.00012818,2]
[333815268,1722527434367,-155.0,0.00012818,2]
[333815269,1722527434377,-600.14164396,0.00012818,2]
[333815270,1722527434386,-297.18571325,0.00012855,2]
[333815271,1722527434396,-155.0,0.00012855,2]
[333815272,1722527434406,-155.0,0.00012855,2]
[333815273,1722527434415,-155.0,0.00012855,2]
[333815274,1722527434424,-3000.0,0.0001287,2]
[333815275,1722527434434,-363.80421493,0.00012883,2]
[333815276,1722527434443,-155.0,0.00012883,2]
[333815277,1722527434452,-155.0,0.00012883,2]
[333815278,1722527434462,-265.17493776,0.00012883,2]
[333815279,1722527434472,-162.1,0.00012884,2]
[333815280,1722527434482,-200.0,0.00012896,2]
[333815281,1722527434493,-200.0,0.00012896,2]
[333815282,1722527434503,-500.0,0.00012896,2]
[333815283,1722527434513,-200.0,0.00012896,2]
[333815284,1722527434523,-1364.4906,0.000129,2]
[333815285,1722527434533,-1120.067,0.000129,2]
[333815286,1722527434543,-1772.4321,0.000129,2]
[333815287,1722527434553,-176.76776976,0.000129,2]
[333815288,1722527434563,-181.13089824,0.000129,2]
[333815289,1722527434573,-200.0,0.000129,4]
[333815290,1722527434583,-5411.2756105,0.000129,2]
[333815292,1722527434592,-238.17491204,0.000129,2]
[333815293,1722527434601,-614.51359985,0.000129,2]
[333815294,1722527434611,-4501.38488214,0.000129,2]
[333815295,1722527434621,-155.0,0.00012928,2]
[333815296,1722527434632,-367.51291896,0.00012928,2]
[333815297,1722527434642,-367.51291896,0.00012928,2]
[333815298,1722527434652,-823.0,0.00012939,2]
[333815299,1722527434662,-2407.636,0.00012991,2]
[333815300,1722527434672,-4534.40209912,0.00012993,2]
[333815301,1722527434683,-306.296054,0.00012993,2]
[333815302,1722527434693,-11543.2301316,0.00012993,2]
[333815304,1722527434703,-70003.81383527,0.00012993,2]
[333815305,1722527434721,-2551.5574411,0.00012993,2]
[333815306,1722527434732,-17553.19730913,0.00012993,2]
[333815307,1722527434748,-349.35447946,0.00012995,2]
[333815308,1722527434758,-10497.57158682,0.00012995,2]
[333815309,1722527434774,-1259.03,0.00012995,2]
[333815310,1722527434791,-26781.0663727,0.00012995,2]
[333815321,1722527438386,-5321.7841887,0.0001185,2]
[333815323,1722527438395,-1404.6505661,0.0001236,2]
[333815324,1722527438405,-1112.24767944,0.0001254,2]
[333815325,1722527438416,-719.24573666,0.00012581,2]
[333815326,1722527438426,-298.34472477,0.00012581,2]
[333815327,1722527438438,-722.68329662,0.00012665,2]
[333815328,1722527438447,-202.68830391,0.00012749,2]
[333815330,1722527438457,-155.0,0.00012749,2]
[333815331,1722527438467,-155.0,0.00012826,2]
[333815332,1722527438478,-155.0,0.00012883,2]
[333815333,1722527438490,-155.0,0.00012924,2]
[333815334,1722527438500,-153.61,0.00012983,2]
[333815335,1722527438510,-153.61,0.00012985,2]
[333815336,1722527438519,-153.61,0.00012985,2]
[333815337,1722527438529,-153.61,0.0001299,2]
[333815338,1722527438539,-153.61,0.0001299,2]
[333815339,1722527438548,-153.61,0.0001299,2]
[333815340,1722527438559,-153.61,0.0001299,2]
[333815341,1722527438568,-153.61,0.0001299,2]
[333815342,1722527438579,-153.61,0.0001299,2]
[333815343,1722527438591,-153.61,0.0001299,2]
[333815344,1722527438602,-153.61,0.0001299,2]
[333815345,1722527438614,-153.61,0.0001299,2]
[333815346,1722527438625,-153.61,0.0001299,2]
[333815347,1722527438635,-131516.57689028,0.00012995,2]
[333815348,1722527438646,-1264.41152,0.00012995,2]
[333815349,1722527438658,-815.0,0.00012995,2]
[333815350,1722527438670,-63147.00000001,0.00012995,2]
[333815351,1722527438687,-153.61,0.0001299,2]
[333815352,1722527438697,-482.3272998,0.00012995,2]
[333815353,1722527438710,-16008.8116504,0.00012995,2]
[333815354,1722527438722,-253.33008332,0.00012995,2]
[333815356,1722527438733,-1005.77138636,0.00012995,2]
[333815358,1722527438751,-4336.55827861,0.00012995,2]
[333815360,1722527438764,-47314.66500227,0.00012995,2]
[333815363,1722527438787,-153.61,0.0001299,2]
[333815365,1722527438799,-161.715,0.00012995,2]
[333815367,1722527438810,-333.49437701,0.00012995,2]
[333815369,1722527438821,-2520.05097986,0.00012995,2]
[333815372,1722527438836,-574.98736815,0.00012995,2]
[333815374,1722527438848,-44219.06159999,0.00012995,2]
[333815375,1722527438860,-21840.0,0.00012995,2]
[333815376,1722527438877,-4295.9824655,0.00012995,2]
[333815377,1722527438902,-1274.29800748,0.0001254,2]
[333815378,1722527438913,-153.61,0.0001299,2]
[333815379,1722527438924,-1395.34219661,0.00012995,2]
[333815381,1722527438937,-16331.1101743,0.00012995,2]
[333815562,1722527440766,-153.61,0.0001299,2]
[333815564,1722527440776,-153.61,0.0001299,2]
[333815566,1722527440787,-8736.83735324,0.00012992,2]
[333815568,1722527440797,-2184.20933831,0.00012994,2]
[333815570,1722527440807,-168776.5155016,0.00012995,2]
[333815575,1722527440842,-7442.37252957,0.00012995,2]
[333815577,1722527440853,-204631.46033912,0.00012995,2]
[333815586,1722527440930,-4592.24611284,0.00012995,2]
[333815588,1722527440941,-31500.0,0.00012995,2]
[333815590,1722527440953,-1999.99989,0.00012995,2]
[333815592,1722527440964,-643.23488832,0.00012995,2]
[333815595,1722527440976,-1766.56156222,0.00012995,2]
[333815597,1722527440987,-1260.92,0.00012995,2]
[333815599,1722527441000,-3008.08311096,0.00012995,2]
[333815601,1722527441011,-1120.07585,0.00012995,2]
[333815605,1722527441039,-297.18571325,0.00012826,2]
[333815607,1722527441048,-55723.01796573,0.00012995,2]
[333815609,1722527441060,-25587.845257,0.00012995,2]
[333815611,1722527441073,-1794.5,0.00012995,2]
[333815616,1722527441112,-727.40483639,0.00012995,2]
[333815976,1722527444571,-6038.14862712,0.00012995,2]
[333815978,1722527444583,-21986.27470492,0.00012995,2]
[333815981,1722527444596,-10877.31968114,0.00012995,2]
[333815983,1722527444607,-3574.84520443,0.00012995,2]
[333815986,1722527444624,-370.19267968,0.00012995,2]
[333815988,1722527444635,-29371.2982155,0.00012995,2]
[333815990,1722527444647,-1201.87353666,0.00012995,2]
[333815993,1722527444664,-26184.49361051,0.00012995,2]
[333815995,1722527444674,-8759.32,0.00012997,2]
[333815997,1722527444684,-8736.83735324,0.00012997,2]
[333815999,1722527444694,-500.0,0.00012999,2]
[333816001,1722527444703,-368.52792083,0.00012999,2]
[333816003,1722527444713,-500.0,0.00012999,2]
[333816005,1722527444722,-1449.3195717,0.00012999,2]
[333816007,1722527444732,-2000.0,0.00012999,2]
[333816009,1722527444744,-795.0,0.00012999,2]
[333816011,1722527444754,-2964580.19472124,0.00013,2]
[333816013,1722527444770,-450553.16874646,0.00013,2]
[333816015,1722527444781,-15731.49999995,0.00013,2]
[333816017,1722527444794,-2627.76022133,0.00013,2]
[333816020,1722527444805,-15843.54454845,0.00013,2]
[333816022,1722527444816,-1261.26,0.00013,2]
[333816024,1722527444829,-1058.76333935,0.00013,2]
[333816026,1722527444840,-315692.68015855,0.00013,2]
[333816029,1722527444853,-630.0,0.00013,2]
[333816031,1722527444865,-4364.25923631,0.00013,2]
[333816034,1722527444884,-1191.72024373,0.00013,2]
[333816036,1722527444895,-1130.13614157,0.00013,2]
[333816039,1722527444916,-794.56166075,0.00012666,2]
[333816206,1722527446532,-634.04819265,0.00012666,2]
[333816215,1722527446603,-71.3901466,0.00012666,2]
[333816217,1722527446613,-155.0,0.00012749,2]
[333816219,1722527446623,-4145.38538708,0.00013,2]
[333816221,1722527446634,-6169.80403672,0.00013,2]
[333816223,1722527446646,-379.44033928,0.00013,2]
[333816226,1722527446663,-347.32373286,0.00012666,2]
[333816228,1722527446672,-23.44136082,0.00013,2]
[333816230,1722527446685,-277.04349761,0.00013,2]
[333816234,1722527446713,-652.98954069,0.00012681,2]
[333816235,1722527446723,-1073.26005805,0.00013,2]
[333816237,1722527446733,-1573.758,0.00013,2]
[333816240,1722527446751,-62964.31963198,0.00013,2]
[333816245,1722527446797,-24878.66891864,0.00013,2]
[333816247,1722527446808,-295.80878593,0.00013,2]
[333816250,1722527446821,-777.8,0.00013,2]
[333816252,1722527446839,-6288.8,0.00013,2]
[333816255,1722527446850,-362.99817035,0.00013,2]
[333816257,1722527446861,-630.63,0.00013,2]
[333816262,1722527446901,-1280.5212,0.00013,2]
[333816264,1722527446913,-138471.79999997,0.00013,2]
[333816267,1722527446928,-569.62893995,0.00013,2]
[333816274,1722527446988,-1006.89059751,0.00013,2]
[333817578,1722527671514,5000.0,0.00025,60]
[333817581,1722527681402,5000.0,0.00012,30]
[333817584,1722527691332,3000.0,0.0001,2]
[333817614,1722527841051,-300.0,9.999e-05,2]
[333817615,1722527841076,-150.0,9.999e-05,2]
[333817616,1722527841099,-7000.0,0.0001,2]
[333817617,1722527841121,-155.0826738,0.0001,2]
[333817618,1722527841143,-790.43228125,0.0001,2]
[333817619,1722527841165,-622.69522806,0.0001,2]
[333817620,1722527841189,-1370.27445908,0.0001,2]
[333817621,1722527841212,-155.0,0.0001,2]
[333817622,1722527841234,-250.0,0.0001,2]
[333817623,1722527841257,-1049.72746869,0.0001,2]
[333817624,1722527841279,-1350.0,0.0001,2]
[333817625,1722527841301,-363.72095219,0.0001,2]
[333817626,1722527841325,-155.0,0.0001,2]
[333817627,1722527841347,-871.55601316,0.0001,2]
[333817628,1722527841369,-485.24511859,0.0001,2]
[333817629,1722527841391,-411.60345226,0.0001,2]
[333817630,1722527841413,-412.76630026,0.0001,2]
[333817631,1722527841437,-155.0,0.0001,2]
[333817632,1722527841459,-291.36870266,0.0001,2]
[333817633,1722527841481,-299.71268725,0.0001,2]
[333817634,1722527841503,-155.0,0.0001,2]
[333817635,1722527841524,-7572.79673936,0.0001,2]
[333817636,1722527841546,-170.34699346,0.0001,2]
[333817637,1722527841570,-340.68338463,0.0001,4]
[333817638,1722527841592,-155.11786335,0.0001,2]
[333817639,1722527841618,-692.66620014,0.0001,2]
[333817640,1722527841640,-74.20348181,0.0001,2]
[333817654,1722527934526,160.0,0.00027,120]
[333817679,1722528099441,2000.0,0.00027,120]
[333817684,1722528126666,249.5,0.00027,120]
[333817694,1722528182443,2000.0,0.00027,120]
[333817799,1722528631505,-925.66,8.783e-05,2]
[333817802,1722528631515,-163.74380624,9.587e-05,2]
[333817805,1722528631526,-139.41050587,9.587e-05,2]
[333817808,1722528631535,-343.58480669,0.0001,2]
[333817810,1722528631555,-105.55804113,0.0001,2]
[333817811,1722528631564,-181.66385154,0.0001,2]
[333817812,1722528631574,-1049.72746869,0.0001,2]
[333817813,1722528631583,-170.34699346,0.0001,2]
[333817814,1722528631592,-340.68338463,0.0001,4]
[333817815,1722528631602,-412.76630026,0.0001,2]
[333817816,1722528631611,-299.71268725,0.0001,2]
[333817817,1722528631620,-155.0,0.0001,2]
[333817818,1722528631630,-190.83,0.00010466,2]
[333817819,1722528631639,-327.97,0.00010495,2]
[333817820,1722528631648,-1836.58,0.00010541,2]
[333817821,1722528631658,-189.22,0.00010551,2]
[333817822,1722528631667,-184.83,0.00010638,2]
[333817823,1722528631677,-541.73,0.00010796,2]
[333817824,1722528631686,-307.18127304,0.000108,2]
[333817825,1722528631698,-630.40537995,0.000108,2]
[333817826,1722528631709,-2233.52834701,0.000108,2]
[333817827,1722528631719,-499.99,0.000108,2]
[333817828,1722528631728,-150.99,0.000108,2]
[333817829,1722528631738,-250.0,0.00010959,2]
[333817830,1722528631747,-250.0,0.00011,2]
[333817831,1722528631757,-925.66,0.00011047,2]
[333817832,1722528631766,-5398.55869267,0.00011105,2]
[333817833,1722528631776,-531.73631271,0.00011105,2]
[333817834,1722528631785,-7046.25224299,0.00011105,2]
[333817835,1722528631797,-1042.5,0.00011105,2]
[333817836,1722528631809,-1445.77865243,0.00011105,2]
[333817837,1722528631826,-2357.93422562,0.00011105,2]
[333817838,1722528631842,-685.87739181,0.00011105,2]
[333817839,1722528631858,-710.59577829,0.00011105,2]
[333817840,1722528631870,-2179.02388726,0.00011105,2]
[333817841,1722528631882,-155.0,0.00011105,2]
[333817843,1722528631896,-4472.47771748,0.00011105,2]
[333817845,1722528631906,-10047.23041269,0.00011105,2]
[333817847,1722528631917,-553.85044682,0.00011105,2]
[333817849,1722528631929,-587.4726,0.00011105,2]
[333817851,1722528631940,-2807.53512977,0.00011105,2]
[333817852,1722528631955,-3167.60000106,0.00011105,2]
[333817865,1722528637506,-532.35,0.00010568,2]
[333817866,1722528637516,-243.00643023,0.00011161,2]
[333817867,1722528637526,-9224.60972977,0.00011186,2]
[333817980,1722528638815,-6316.42537546,0.00011186,2]
[333817982,1722528638831,-7095.59138811,0.00011186,2]
[333817984,1722528638843,-1910.00124877,0.00011186,2]
[333817987,1722528638858,-340.34000005,0.00011186,2]
[333817989,1722528638872,-294.2500075,0.00011186,2]
[333817992,1722528638885,-2426.3497352,0.00011186,2]
[333818261,1722528641234,-498.86120004,0.00011186,2]
[333818264,1722528641245,-950.04,0.00011186,2]
[333818267,1722528641269,-949.295,0.00011186,2]
[333818269,1722528641281,-938.29101804,0.00011186,2]
[333818273,1722528641303,-1479.82326203,0.00011186,2]
[333818275,1722528641314,-2439.14814662,0.00011186,2]
[333818277,1722528641325,-1726.14668257,0.00011186,2]
[333818279,1722528641334,-12319.62411391,0.00011186,2]
[333818306,1722528641583,-96.668875,0.00011186,2]
[333818309,1722528641607,-1536.25331191,0.00011186,2]
[333818311,1722528641617,-632.34311809,0.00011224,2]
[333818315,1722528641641,-1528.38508191,0.00011224,2]
[333818317,1722528641651,-11310.76474563,0.00011258,2]
[333818319,1722528641662,-3059.17987268,0.00011258,2]
[333818322,1722528641676,-6047.78538169,0.00011258,2]
[333818324,1722528641686,-250.0,0.00011298,2]
[333818326,1722528641712,-176.0,0.00011682,2]
[333818328,1722528641721,-3041.18009718,0.0001185,2]
[333818330,1722528641737,-348.33,0.0001185,2]
[333818332,1722528641748,-297.75029726,0.0001185,2]
[333818334,1722528641759,-841.76593555,0.0001185,2]
[333818337,1722528641773,-300.0,0.0001185,2]
[333818339,1722528641786,-1061.34550183,0.0001185,2]
[333818342,1722528641798,-3117.5,0.0001185,2]
[333818344,1722528641808,-382.35,0.0001185,2]
[333818346,1722528641823,-2256.33146258,0.0001185,2]
[333818349,1722528641835,-552.33090042,0.0001185,2]
[333818351,1722528641846,-356.19588052,0.0001185,2]
[333818374,1722528642558,-1913.60066779,0.0001185,2]
[333818381,1722528642613,-10829.78245727,0.0001185,2]
[333818383,1722528642622,-155.0,0.0001185,2]
[333818385,1722528642632,-155.0,0.00011959,2]
[333818387,1722528642642,-155.0,0.00011959,2]
[333818389,1722528642651,-184.83,0.00011968,2]
[333818391,1722528642661,-1000.0,0.00011969,2]
[333818393,1722528642670,-150.0,0.00011989,2]
[333818395,1722528642680,-550.0,0.00012,2]
[333818397,1722528642690,-491.16,0.00012021,2]
[333818399,1722528642699,-162.1,0.00012033,2]
[333818401,1722528642709,-170.99,0.00012111,2]
[333818403,1722528642719,-530.1,0.00012192,2]
[333818405,1722528642749,-173.0,0.0001233,2]
[333818407,1722528642759,-519.62430261,0.0001236,2]
[333818409,1722528642768,-155.0,0.0001236,2]
[333818411,1722528642778,-155.0,0.00012397,2]
[333818413,1722528642787,-155.0,0.00012397,2]
[333818415,1722528642797,-155.0,0.00012397,2]
[333818417,1722528642807,-236.10516886,0.00012397,2]
[333818419,1722528642816,-236.10516886,0.0001246,2]